Workbook

Sheet Расчет суммы (корректировка РМ) (hidden)
B2: =#REF! -> 
A4: Общая сумма кредита утвержденная РМ (ИТОГО) | C4: 0 | H4: Тип | I4: Название СК | J4: коэф. | K4: Знач
A5: Новая сумма клиенту | C5: =IFERROR(MROUND(C4/K5,100),"") ->  | G5: Cтраховка | H5: =#REF! ->  | I5: =#REF! ->  | J5: =#REF! ->  | K5: =(J5/1)+1 -> 
A6: Новая сумма страховой организации | C6: =IFERROR((C4)-(C5),"") -> 
A7: Сумма, которую необходимо внести клиенту в кассу магазина. | C7: =#REF!-'Расчет суммы (корректировка РМ)'!C5 -> 
A8: Новые параметры кредитования
A10: Процентная ставка по договору | C10: =IF(C6="","",#REF!) -> 
A11: Cрок кредита (мес.) | C11: =IF(C6="","",#REF!) -> 
A12: Ежемесячный платеж по кредиту (BYR) | C12: =IFERROR(CEILING(C4*(C10/12)/(1-POWER(1+C10/12,-C11)),1000),"") -> 
A13: Абонентская плата за использование пакета услуг (BYR) | C13: =IF(C6="","",#REF!) -> 
A15: ИТОГО Сумма ежемесячного платежа | C15: =IF(C6="","",(SUM(C12:C13))) -> 

Sheet Обучающий материал (hidden)
A2: I | B2: Расчет доступной суммы кредита для кредитного продукта
B4: Расчет доступной суммы кредита осуществляется с обязательным заполнением следующих полей:
B6: 1 | C6: Выбор программы кредитования
B7: 2 | C7: Запрашиваемый срок кредита (По умолчанию рассчитывается исходя из срока 60 мес.)
C8: При желании клиента оформить кредит на иной срок - запрашиваемый срок кредита необходимо изменить .
B9: 3 | C9: Подтвержденный доход
B10: 4 | C10: Выплаты по кредитам
B11: 5 | C11: Иные платежа кроме коммунальных
B12: 6 | C12: Количество членов семьи
B13: После заполнения вышеуказанных полей вы сможете увидеть максимально доступную сумму кредита,
B14: без дополнительной проверки путем ввода максимальной суммы кредита в поле "Запрашиваемая сумма кредита".
A33: II | B33: Работа с вкладкой калькулятора «Расчет суммы (корректировка РМ)»
B34: Для корректного пересчета суммы кредита с/без страховки , сниженной при рассмотрении риск-менеджером, необходимо:
B36: 1.На вкладке «Калькулятор» обязательно заполняем следующие поля:
B37: 1.1. Программа кредитования
B38: 1.2. Указать сумму товара по Счет-Фактуре
B39: 1.3. Указать сумму первоночального взноса | E39: (если имеется)
B40: 1.4. Указать срок
B41: *информация в полях должна четко соответствовать первоначально введенным параметрам по заявке до рассмотрения риск-менеджером.
B55: 2. Переходим на вкладку «Расчет суммы (корректировки РМ)
B56: 2.1. В поле "Общая сумма кредита утвержденная РМ (ИТОГО) вводим утвержденную сумму риск-менеджером.
B82: 3.В поле "Общая сумма кредита утвержденная (РМ)" - необходимо внести сумму которую утвердил РМ.
B107: 4. Получаете обновленную информацию:
B108: - Новая сумма клиенту
B109: - Новая сумма страховой организации
B110: - Сумма, которую необходимо внести клиенту в кассу магазина.

Sheet Новый график 2 ставки+отсрочка
A1: Предварительный график платежей по кредиту | I1: Даты
A2: Дата договора | D2: 2020-09-28 | I2: Дата выдачи кредита/сегодня | N2: =D2 -> 2020-09-28 | O2: =DATE(YEAR(Дата_выдачи_кредита),MONTH(Дата_выдачи_кредита),DAY(N4)) -> 2020-09-28
A3: ППС Начало/конец | D3: =SUM(D13:D132)*360/SUM(W13:W132) -> 0.2638428167 | E3: =SUM(D13:D132)*360/SUM(X13:X132) -> 0.2989915109 | I3: Дата начала действаия 2-й ставки | N3: =Дата_выдачи_кредита+Кол_во_Льготных_дней -> 2020-09-28
A4: Сумма кредита | D4: 2000 | I4: Платежная дата | N4: =DAY(Дата_выдачи_кредита) -> 28
A5: Срок кредита (мес.) | D5: 12 | I5: Количество дней после платежной даты | N5: =IF((N6-Платежная_дата<0),0,N6-Платежная_дата) -> 2
A6: %-ставка по договору(Льготная /Основная) | D6: 0.299 | E6: 0.299 | I6: Количество дней в месяце | N6: 30
A7: Отсрочка платежа по ОД (мес.) | D7: 0 | I7: количество льгодных дней в периоде с ID = 2 | N7: =IF((DAY(Дата_второй_ставки))=1,Платежная_дата,IF((DAY(Дата_второй_ставки-1))>30,30,DAY(Дата_второй_ставки-1))) -> 27
A8: Срок действия льготной ставки (дней) | D8: 0 | I8: количество НЕ_льгодных дней в периоде с ID = 2 | N8: =IF((N6-N7)<0,0,N6-N7) -> 3
A10: Итого (бел.руб.) | C10: =SUM(C13:C132) -> 2000 | D10: =SUM(D13:D132) -> 338.5 | E10: =SUM(E13:E132) -> 2338.5
I11: Для ОД | J11: Для процентов | L11: начисление % (сроки) | N11: ID | O11: Количество дней для 1-й ставки | P11: Количество дней для 2-й ставки | Q11: Расчет суммы процентов | R11: %
A12: Платеж | B12: Дата платежа | C12: Сумма платежа по ОД (бел.руб) | D12: Сумма платежа по % (бел.руб) | E12: Сумма платежа по кредиту (бел.руб) | I12: Остаток ОД | J12: Остаток ОД на начало | K12: Остаток ОД на конец | L12: дата начала периода начисления | M12: дата конеца периода начисления | R12: для ID 1 ставки | S12: для ID 2 ставки | T12: для ID 3 ставки | U12: для ID 4 ставки | W12: Среднедневные остатки на начало | X12: Среднедневные остатки на конец
A13: =IF(Срок_Кредита<1,"",1) -> 1 | B13: =IFERROR((DATE(YEAR(O2),MONTH(O2)+1,DAY(O2))),"") -> 2020-10-28 | C13: =IF(A13="","",IF(A13<=Отсрочка_ОД,0,ROUND((I13*(Основная_Ставка/12)/(1-POWER(1+Основная_Ставка/12,-Срок_Кредита))),2)-ROUND((I13*Основная_Ставка/12),2))) -> 145.05 | D13: =IF(A13="","",Q13) -> 3.32 | E13: =IF(A13="","",C13+D13) -> 148.37 | I13: =IF(A13="","",Сумма_Кредита) -> 2000 | J13: =IF(A13="","",I13) -> 2000 | K13: =IF(A13="","",J13) -> 2000 | L13: =IF(A13="","",DATE(YEAR(Дата_выдачи_кредита),MONTH(Дата_выдачи_кредита),DAY(Дата_выдачи_кредита))) -> 2020-09-28 | M13: =IF(A13="","",EOMONTH(L13,0)) -> 2020-09-30 | N13: =IF(A13="","",IF(A13=Срок_Кредита,4,IF(Кол_во_Льготных_дней=0,1,IF(Дата_второй_ставки>M13,1,IF(Дата_второй_ставки>=L13,IF(Дата_второй_ставки<=M13,2),3))))) -> 1 | O13: =IF(A13="","",IF(N13=1,$N$5,IF(N13=2,Кол_во_Льготных_дней-1,0))) -> 2 | P13: =IF(A13="","",N5-O13) -> 0 | Q13: =IF(A13="","",ROUND((J13*Льготная_Ставка*O13/360)+(K13*Основная_Ставка*P13/360),2)) -> 3.32 | W13: =IFERROR(J13*30,0) -> 60000 | X13: =IFERROR(K13*30,0) -> 60000
A14: =IF(Срок_Кредита<2,"",2) -> 2 | B14: =IF(A14="","",IFERROR((DATE(YEAR(B13),MONTH(B13)+1,DAY(B13))),"")) -> 2020-11-28 | C14: =IF(A14="","",IF(A14<=Отсрочка_ОД,0,ROUND((I14*(Основная_Ставка/12)/(1-POWER(1+Основная_Ставка/12,-(Срок_Кредита-A13)))),2)-ROUND((I14*Основная_Ставка/12),2))) -> 148.66 | D14: 49.59 | E14: =IF(A14="","",C14+D14) -> 198.25 | I14: =IF(A14="","",I13-C13) -> 1854.95 | J14: =IF(A14="","",K13) -> 2000 | K14: =IF(A14="","",I14) -> 1854.95 | L14: =IF(A14="","",DATE(YEAR(Дата_выдачи_кредита),MONTH(Дата_выдачи_кредита)+A13,DAY(1))) -> 2020-10-01 | M14: 2020-10-31 | N14: =IF(A14="","",IF(A14=Срок_Кредита,4,IF(Кол_во_Льготных_дней=0,3,IF(Дата_второй_ставки>=M14,1,IF(Дата_второй_ставки>L14,IF(Дата_второй_ставки<M14,2),3))))) -> 3 | O14: =IF(A14="","",IF(N14=1,Платежная_дата,IF(N14=2,$N$7,Платежная_дата))) -> 28 | P14: =IF(A14="","",IF(N14=1,$N$5,IF(N14=2,$N$8,$N$5))) -> 2 | Q14: =IF(A14="","",IF(N14=1,R14,IF(N14=2,S14,IF(N14=3,T14,IF(N14=4,U14))))) -> 49.59 | R14: =IF(A14="","",ROUND((J14*Льготная_Ставка*O14/360)+(K14*Льготная_Ставка*P14/360),2)) -> 49.59 | S14: =IF(A14="","",IF($N$7<Платежная_дата,(ROUND((J14*Льготная_Ставка*$N$7/360)+(J14*Основная_Ставка*(Платежная_дата-$N$7)/360)+(K14*Основная_Ставка*$N$5/360),2)),IF($N$7=Платежная_дата,(ROUND((J14*Льготная_Ставка*Платежная_дата/360)+(K14*Основная_Ставка*$N$5/360),2)),IF($N$7>Платежная_дата,(ROUND((J14*Льготная_Ставка*Платежная_дата/360)+(K14*Льготная_Ставка*($N$7-Платежная_дата)/360)+(K14*Основная_Ставка*$N$8/360),2)))))) -> 49.59 | T14: =IF(A14="","",ROUND((J14*Основная_Ставка*O14/360)+(K14*Основная_Ставка*P14/360),2)) -> 49.59 | U14: =IF(A14="","",ROUND((J14*Основная_Ставка*O14/360)+(K14*Основная_Ставка*P14/360)+(K14*Основная_Ставка*Платежная_дата/360),2)) -> 92.73 | W14: =IFERROR(J14*30,0) -> 60000 | X14: =IFERROR(K14*30,0) -> 55648.5
A15: =IF(Срок_Кредита<3,"",3) -> 3 | B15: =IF(A15="","",IFERROR((DATE(YEAR(B14),MONTH(B14)+1,DAY(B14))),"")) -> 2020-12-28 | C15: 152.35 | D15: 45.97 | E15: 198.32 | I15: 1706.29 | J15: 1854.95 | K15: 1706.29 | L15: 2020-11-01 | M15: 2020-11-30 | N15: 3 | O15: 28 | P15: =IF(A15="","",IF(N15=1,$N$5,IF(N15=2,$N$8,$N$5))) -> 2 | Q15: 45.97 | R15: 45.97 | S15: 45.97 | T15: 45.97 | U15: 85.65 | W15: 55648.5 | X15: 51188.7
A16: =IF(Срок_Кредита<4,"",4) -> 4 | B16: 2021-01-28 | C16: 156.16 | D16: 42.26 | E16: 198.42 | I16: 1553.94 | J16: 1706.29 | K16: 1553.94 | L16: 2020-12-01 | M16: 2020-12-31 | N16: 3 | O16: 28 | P16: 2 | Q16: 42.26 | R16: 42.26 | S16: 42.26 | T16: 42.26 | U16: 78.4 | W16: 51188.7 | X16: 46618.2
A17: =IF(Срок_Кредита<5,"",5) -> 5 | B17: 2021-02-28 | C17: 160.05 | D17: 38.46 | E17: 198.51 | I17: 1397.78 | J17: 1553.94 | K17: 1397.78 | L17: 2021-01-01 | M17: 2021-01-31 | N17: 3 | O17: 28 | P17: 2 | Q17: 38.46 | R17: 38.46 | S17: 38.46 | T17: 38.46 | U17: 70.97 | W17: 46618.2 | X17: 41933.4
A18: =IF(Срок_Кредита<6,"",6) -> 6 | B18: 2021-03-28 | C18: 164.03 | D18: 34.56 | E18: 198.59 | I18: 1237.73 | J18: 1397.78 | K18: 1237.73 | L18: 2021-02-01 | M18: 2021-02-28 | N18: 3 | O18: 28 | P18: 2 | Q18: 34.56 | R18: 34.56 | S18: 34.56 | T18: 34.56 | U18: 63.35 | W18: 41933.4 | X18: 37131.9
A19: =IF(Срок_Кредита<7,"",7) -> 7 | B19: 2021-04-28 | C19: 168.13 | D19: 30.57 | E19: 198.7 | I19: 1073.7 | J19: 1237.73 | K19: 1073.7 | L19: 2021-03-01 | M19: 2021-03-31 | N19: 3 | O19: 28 | P19: 2 | Q19: 30.57 | R19: 30.57 | S19: 30.57 | T19: 30.57 | U19: 55.54 | W19: 37131.9 | X19: 32211
A20: =IF(Срок_Кредита<8,"",8) -> 8 | B20: 2021-05-28 | C20: 172.31 | D20: 26.47 | E20: 198.78 | I20: 905.57 | J20: 1073.7 | K20: 905.57 | L20: 2021-04-01 | M20: 2021-04-30 | N20: 3 | O20: 28 | P20: 2 | Q20: 26.47 | R20: 26.47 | S20: 26.47 | T20: 26.47 | U20: 47.53 | W20: 32211 | X20: 27167.1
A21: =IF(Срок_Кредита<9,"",9) -> 9 | B21: 2021-06-28 | C21: 176.6 | D21: 22.28 | E21: 198.88 | I21: 733.26 | J21: 905.57 | K21: 733.26 | L21: 2021-05-01 | M21: 2021-05-31 | N21: 3 | O21: 28 | P21: 2 | Q21: 22.28 | R21: 22.28 | S21: 22.28 | T21: 22.28 | U21: 39.33 | W21: 27167.1 | X21: 21997.8
A22: =IF(Срок_Кредита<10,"",10) -> 10 | B22: 2021-07-28 | C22: 181.01 | D22: 17.98 | E22: 198.99 | I22: 556.66 | J22: 733.26 | K22: 556.66 | L22: 2021-06-01 | M22: 2021-06-30 | N22: 3 | O22: 28 | P22: 2 | Q22: 17.98 | R22: 17.98 | S22: 17.98 | T22: 17.98 | U22: 30.92 | W22: 21997.8 | X22: 16699.8
A23: =IF(Срок_Кредита<11,"",11) -> 11 | B23: 2021-08-28 | C23: 185.51 | D23: 13.57 | E23: 199.08 | I23: 375.65 | J23: 556.66 | K23: 375.65 | L23: 2021-07-01 | M23: 2021-07-31 | N23: 3 | O23: 28 | P23: 2 | Q23: 13.57 | R23: 13.57 | S23: 13.57 | T23: 13.57 | U23: 22.31 | W23: 16699.8 | X23: 11269.5
A24: =IF(Срок_Кредита<12,"",12) -> 12 | B24: 2021-09-28 | C24: 190.14 | D24: 13.47 | E24: 203.61 | I24: 190.14 | J24: 375.65 | K24: 190.14 | L24: 2021-08-01 | M24: 2021-08-31 | N24: 4 | O24: 28 | P24: 2 | Q24: 13.47 | R24: 9.05 | S24: 9.05 | T24: 9.05 | U24: 13.47 | W24: 11269.5 | X24: 5704.2
A25: =IF(Срок_Кредита<13,"",13) ->  | W25: 0 | X25: 0
A26: =IF(Срок_Кредита<14,"",14) ->  | W26: 0 | X26: 0
A27: =IF(Срок_Кредита<15,"",15) ->  | W27: 0 | X27: 0
A28: =IF(Срок_Кредита<16,"",16) ->  | W28: 0 | X28: 0
A29: =IF(Срок_Кредита<17,"",17) ->  | W29: 0 | X29: 0
A30: =IF(Срок_Кредита<18,"",18) ->  | W30: 0 | X30: 0
A31: =IF(Срок_Кредита<19,"",19) ->  | W31: 0 | X31: 0
A32: =IF(Срок_Кредита<20,"",20) ->  | W32: 0 | X32: 0
A33: =IF(Срок_Кредита<21,"",21) ->  | W33: 0 | X33: 0
A34: =IF(Срок_Кредита<22,"",22) ->  | W34: 0 | X34: 0
A35: =IF(Срок_Кредита<23,"",23) ->  | W35: 0 | X35: 0
A36: =IF(Срок_Кредита<24,"",24) ->  | W36: 0 | X36: 0
A37: =IF(Срок_Кредита<25,"",25) ->  | W37: 0 | X37: 0
A38: =IF(Срок_Кредита<26,"",26) ->  | W38: 0 | X38: 0
A39: =IF(Срок_Кредита<27,"",27) ->  | W39: 0 | X39: 0
A40: =IF(Срок_Кредита<28,"",28) ->  | W40: 0 | X40: 0
A41: =IF(Срок_Кредита<29,"",29) ->  | W41: 0 | X41: 0
A42: =IF(Срок_Кредита<30,"",30) ->  | W42: 0 | X42: 0
A43: =IF(Срок_Кредита<31,"",31) ->  | W43: 0 | X43: 0
A44: =IF(Срок_Кредита<32,"",32) ->  | W44: 0 | X44: 0
A45: =IF(Срок_Кредита<33,"",33) ->  | D45: =IF(A45="","",Q45) ->  | M45: =IF(A45="","",EOMONTH(L45,0)) ->  | W45: 0 | X45: 0
A46: =IF(Срок_Кредита<34,"",34) ->  | C46: =IF(A46="","",IF(A46<=Отсрочка_ОД,0,ROUND((I46*(Основная_Ставка/12)/(1-POWER(1+Основная_Ставка/12,-(Срок_Кредита-A45)))),2)-ROUND((I46*Основная_Ставка/12),2))) ->  | I46: =IF(A46="","",I45-C45) ->  | J46: =IF(A46="","",K45) ->  | K46: =IF(A46="","",I46) ->  | L46: =IF(A46="","",DATE(YEAR(Дата_выдачи_кредита),MONTH(Дата_выдачи_кредита)+A45,DAY(1))) ->  | N46: =IF(A46="","",IF(A46=Срок_Кредита,4,IF(Кол_во_Льготных_дней=0,3,IF(Дата_второй_ставки>=M46,1,IF(Дата_второй_ставки>L46,IF(Дата_второй_ставки<M46,2),3))))) ->  | O46: =IF(A46="","",IF(N46=1,Платежная_дата,IF(N46=2,$N$7,Платежная_дата))) ->  | Q46: =IF(A46="","",IF(N46=1,R46,IF(N46=2,S46,IF(N46=3,T46,IF(N46=4,U46))))) ->  | R46: =IF(A46="","",ROUND((J46*Льготная_Ставка*O46/360)+(K46*Льготная_Ставка*P46/360),2)) ->  | S46: =IF(A46="","",IF($N$7<Платежная_дата,(ROUND((J46*Льготная_Ставка*$N$7/360)+(J46*Основная_Ставка*(Платежная_дата-$N$7)/360)+(K46*Основная_Ставка*$N$5/360),2)),IF($N$7=Платежная_дата,(ROUND((J46*Льготная_Ставка*Платежная_дата/360)+(K46*Основная_Ставка*$N$5/360),2)),IF($N$7>Платежная_дата,(ROUND((J46*Льготная_Ставка*Платежная_дата/360)+(K46*Льготная_Ставка*($N$7-Платежная_дата)/360)+(K46*Основная_Ставка*$N$8/360),2)))))) ->  | T46: =IF(A46="","",ROUND((J46*Основная_Ставка*O46/360)+(K46*Основная_Ставка*P46/360),2)) ->  | U46: =IF(A46="","",ROUND((J46*Основная_Ставка*O46/360)+(K46*Основная_Ставка*P46/360)+(K46*Основная_Ставка*Платежная_дата/360),2)) ->  | W46: 0 | X46: 0
A47: =IF(Срок_Кредита<35,"",35) ->  | W47: 0 | X47: 0
A48: =IF(Срок_Кредита<36,"",36) ->  | W48: 0 | X48: 0
A49: =IF(Срок_Кредита<37,"",37) ->  | W49: 0 | X49: 0
A50: =IF(Срок_Кредита<38,"",38) ->  | W50: 0 | X50: 0
A51: =IF(Срок_Кредита<39,"",39) ->  | W51: 0 | X51: 0
A52: =IF(Срок_Кредита<40,"",40) ->  | W52: 0 | X52: 0
A53: =IF(Срок_Кредита<41,"",41) ->  | W53: 0 | X53: 0
A54: =IF(Срок_Кредита<42,"",42) ->  | W54: 0 | X54: 0
A55: =IF(Срок_Кредита<43,"",43) ->  | W55: 0 | X55: 0
A56: =IF(Срок_Кредита<44,"",44) ->  | W56: 0 | X56: 0
A57: =IF(Срок_Кредита<45,"",45) ->  | W57: 0 | X57: 0
A58: =IF(Срок_Кредита<46,"",46) ->  | W58: 0 | X58: 0
A59: =IF(Срок_Кредита<47,"",47) ->  | W59: 0 | X59: 0
A60: =IF(Срок_Кредита<48,"",48) ->  | W60: 0 | X60: 0
A61: =IF(Срок_Кредита<49,"",49) ->  | W61: 0 | X61: 0
A62: =IF(Срок_Кредита<50,"",50) ->  | W62: 0 | X62: 0
A63: =IF(Срок_Кредита<51,"",51) ->  | W63: 0 | X63: 0
A64: =IF(Срок_Кредита<52,"",52) ->  | W64: 0 | X64: 0
A65: =IF(Срок_Кредита<53,"",53) ->  | W65: 0 | X65: 0
A66: =IF(Срок_Кредита<54,"",54) ->  | W66: 0 | X66: 0
A67: =IF(Срок_Кредита<55,"",55) ->  | W67: 0 | X67: 0
A68: =IF(Срок_Кредита<56,"",56) ->  | W68: 0 | X68: 0
A69: =IF(Срок_Кредита<57,"",57) ->  | W69: 0 | X69: 0
A70: =IF(Срок_Кредита<58,"",58) ->  | W70: 0 | X70: 0
A71: =IF(Срок_Кредита<59,"",59) ->  | W71: 0 | X71: 0
A72: =IF(Срок_Кредита<60,"",60) ->  | W72: 0 | X72: 0
A73: =IF(Срок_Кредита<61,"",61) ->  | W73: 0 | X73: 0
A74: =IF(Срок_Кредита<62,"",62) ->  | W74: 0 | X74: 0
A75: =IF(Срок_Кредита<63,"",63) ->  | W75: 0 | X75: 0
A76: =IF(Срок_Кредита<64,"",64) ->  | W76: 0 | X76: 0
A77: =IF(Срок_Кредита<65,"",65) ->  | W77: 0 | X77: 0
A78: =IF(Срок_Кредита<66,"",66) ->  | E78: =IF(A78="","",C78+D78) ->  | W78: =IFERROR(J78*30,0) -> 0 | X78: =IFERROR(K78*30,0) -> 0
A79: =IF(Срок_Кредита<67,"",67) ->  | B79: =IF(A79="","",IFERROR((DATE(YEAR(B78),MONTH(B78)+1,DAY(B78))),"")) ->  | P79: =IF(A79="","",IF(N79=1,$N$5,IF(N79=2,$N$8,$N$5))) ->  | W79: 0 | X79: 0
A80: =IF(Срок_Кредита<68,"",68) ->  | W80: 0 | X80: 0
A81: =IF(Срок_Кредита<69,"",69) ->  | W81: 0 | X81: 0
A82: =IF(Срок_Кредита<70,"",70) ->  | W82: 0 | X82: 0
A83: =IF(Срок_Кредита<71,"",71) ->  | W83: 0 | X83: 0
A84: =IF(Срок_Кредита<72,"",72) ->  | W84: 0 | X84: 0
A85: =IF(Срок_Кредита<73,"",73) ->  | W85: 0 | X85: 0
A86: =IF(Срок_Кредита<74,"",74) ->  | W86: 0 | X86: 0
A87: =IF(Срок_Кредита<75,"",75) ->  | W87: 0 | X87: 0
A88: =IF(Срок_Кредита<76,"",76) ->  | W88: 0 | X88: 0
A89: =IF(Срок_Кредита<77,"",77) ->  | W89: 0 | X89: 0
A90: =IF(Срок_Кредита<78,"",78) ->  | W90: 0 | X90: 0
A91: =IF(Срок_Кредита<79,"",79) ->  | W91: 0 | X91: 0
A92: =IF(Срок_Кредита<80,"",80) ->  | W92: 0 | X92: 0
A93: =IF(Срок_Кредита<81,"",81) ->  | W93: 0 | X93: 0
A94: =IF(Срок_Кредита<82,"",82) ->  | W94: 0 | X94: 0
A95: =IF(Срок_Кредита<83,"",83) ->  | W95: 0 | X95: 0
A96: =IF(Срок_Кредита<84,"",84) ->  | W96: 0 | X96: 0
A97: =IF(Срок_Кредита<85,"",85) ->  | W97: 0 | X97: 0
A98: =IF(Срок_Кредита<86,"",86) ->  | W98: 0 | X98: 0
A99: =IF(Срок_Кредита<87,"",87) ->  | W99: 0 | X99: 0
A100: =IF(Срок_Кредита<88,"",88) ->  | W100: 0 | X100: 0
A101: =IF(Срок_Кредита<89,"",89) ->  | W101: 0 | X101: 0
A102: =IF(Срок_Кредита<90,"",90) ->  | W102: 0 | X102: 0
A103: =IF(Срок_Кредита<91,"",91) ->  | W103: 0 | X103: 0
A104: =IF(Срок_Кредита<92,"",92) ->  | W104: 0 | X104: 0
A105: =IF(Срок_Кредита<93,"",93) ->  | W105: 0 | X105: 0
A106: =IF(Срок_Кредита<94,"",94) ->  | W106: 0 | X106: 0
A107: =IF(Срок_Кредита<95,"",95) ->  | W107: 0 | X107: 0
A108: =IF(Срок_Кредита<96,"",96) ->  | W108: 0 | X108: 0
A109: =IF(Срок_Кредита<97,"",97) ->  | D109: =IF(A109="","",Q109) ->  | M109: =IF(A109="","",EOMONTH(L109,0)) ->  | W109: 0 | X109: 0
A110: =IF(Срок_Кредита<98,"",98) ->  | C110: =IF(A110="","",IF(A110<=Отсрочка_ОД,0,ROUND((I110*(Основная_Ставка/12)/(1-POWER(1+Основная_Ставка/12,-(Срок_Кредита-A109)))),2)-ROUND((I110*Основная_Ставка/12),2))) ->  | I110: =IF(A110="","",I109-C109) ->  | J110: =IF(A110="","",K109) ->  | K110: =IF(A110="","",I110) ->  | L110: =IF(A110="","",DATE(YEAR(Дата_выдачи_кредита),MONTH(Дата_выдачи_кредита)+A109,DAY(1))) ->  | N110: =IF(A110="","",IF(A110=Срок_Кредита,4,IF(Кол_во_Льготных_дней=0,3,IF(Дата_второй_ставки>=M110,1,IF(Дата_второй_ставки>L110,IF(Дата_второй_ставки<M110,2),3))))) ->  | O110: =IF(A110="","",IF(N110=1,Платежная_дата,IF(N110=2,$N$7,Платежная_дата))) ->  | Q110: =IF(A110="","",IF(N110=1,R110,IF(N110=2,S110,IF(N110=3,T110,IF(N110=4,U110))))) ->  | R110: =IF(A110="","",ROUND((J110*Льготная_Ставка*O110/360)+(K110*Льготная_Ставка*P110/360),2)) ->  | S110: =IF(A110="","",IF($N$7<Платежная_дата,(ROUND((J110*Льготная_Ставка*$N$7/360)+(J110*Основная_Ставка*(Платежная_дата-$N$7)/360)+(K110*Основная_Ставка*$N$5/360),2)),IF($N$7=Платежная_дата,(ROUND((J110*Льготная_Ставка*Платежная_дата/360)+(K110*Основная_Ставка*$N$5/360),2)),IF($N$7>Платежная_дата,(ROUND((J110*Льготная_Ставка*Платежная_дата/360)+(K110*Льготная_Ставка*($N$7-Платежная_дата)/360)+(K110*Основная_Ставка*$N$8/360),2)))))) ->  | T110: =IF(A110="","",ROUND((J110*Основная_Ставка*O110/360)+(K110*Основная_Ставка*P110/360),2)) ->  | U110: =IF(A110="","",ROUND((J110*Основная_Ставка*O110/360)+(K110*Основная_Ставка*P110/360)+(K110*Основная_Ставка*Платежная_дата/360),2)) ->  | W110: 0 | X110: 0
A111: =IF(Срок_Кредита<99,"",99) ->  | W111: 0 | X111: 0
A112: =IF(Срок_Кредита<100,"",100) ->  | W112: 0 | X112: 0
A113: =IF(Срок_Кредита<101,"",101) ->  | W113: 0 | X113: 0
A114: =IF(Срок_Кредита<102,"",102) ->  | W114: 0 | X114: 0
A115: =IF(Срок_Кредита<103,"",103) ->  | W115: 0 | X115: 0
A116: =IF(Срок_Кредита<104,"",104) ->  | W116: 0 | X116: 0
A117: =IF(Срок_Кредита<105,"",105) ->  | W117: 0 | X117: 0
A118: =IF(Срок_Кредита<106,"",106) ->  | W118: 0 | X118: 0
A119: =IF(Срок_Кредита<107,"",107) ->  | W119: 0 | X119: 0
A120: =IF(Срок_Кредита<108,"",108) ->  | W120: 0 | X120: 0
A121: =IF(Срок_Кредита<109,"",109) ->  | W121: 0 | X121: 0
A122: =IF(Срок_Кредита<110,"",110) ->  | W122: 0 | X122: 0
A123: =IF(Срок_Кредита<111,"",111) ->  | W123: 0 | X123: 0
A124: =IF(Срок_Кредита<112,"",112) ->  | W124: 0 | X124: 0
A125: =IF(Срок_Кредита<113,"",113) ->  | W125: 0 | X125: 0
A126: =IF(Срок_Кредита<114,"",114) ->  | W126: 0 | X126: 0
A127: =IF(Срок_Кредита<115,"",115) ->  | W127: 0 | X127: 0
A128: =IF(Срок_Кредита<116,"",116) ->  | W128: 0 | X128: 0
A129: =IF(Срок_Кредита<117,"",117) ->  | W129: 0 | X129: 0
A130: =IF(Срок_Кредита<118,"",118) ->  | W130: 0 | X130: 0
A131: =IF(Срок_Кредита<119,"",119) ->  | W131: 0 | X131: 0
A132: =IF(Срок_Кредита<120,"",120) ->  | W132: 0 | X132: 0
